[Event "New York Spring IM-C 2022"]
[Site "New York"]
[Date "2022.04.15"]
[Round "2.4"]
[White "Singh, Hersh"]
[Black "Chasin, Nico"]
[Result "0-1"]
[ECO "A47"]
[WhiteElo "2084"]
[BlackElo "2270"]
[Annotator "TA"]
[PlyCount "84"]
[EventDate "2022.04.14"]
[EventType "tourn"]
[EventCountry "USA"]
[SourceTitle "playchess.com"]
[Source "ChessBase"]
[SourceQuality "1"]
[TimeControl "5400+30"]

{[%evp 9,84,0,22,18,19,16,38,15,25,14,14,14,22,19,35,0,0,14,12,0,0,0,0,0,0,-11,-2,-24,-22,-39,0,0,0,-11,0,0,0,0,0,-20,-24,-24,-19,-212,-220,-534,-528,-732,-778,-730,-772,-780,-777,-751,-700,-856,-858,-1050,-1047,-1219,-1192,-29988,-29979,-29989,-29980,-29970,-29941,-29981,-29982,-29982,-29983,-29982,-29978,-29978,-29978,-29977,-6127]} 1. d4 {[%emt 0:00:01]} Nf6 {[%emt 0:08:39]} 2. Bf4 {[%emt 0:00:07]} e6 {[%emt 0:02:10]} 3. e3 {[%emt 0:00:13]} b6 {[%emt 0:02:10]} 4. Nf3 {[%emt 0:00:20]} Bb7 {[%emt 0:00:02]} 5. Bd3 {[%emt 0:02:23]} d6 {[%emt 0:00:04]} 6. O-O {[%emt 0:04:40] A47: 1 d4 Nf6 2 Nf3 b6: Torre, London and Colle Systems.} Nbd7 {[%emt 0:00:04]} 7. h3 {[%emt 0:01:19]} Qe7 {[%emt 0:00:27] Threatens to win with ...e5.} 8. Bh2 {[%emt 0:00:24] White is slightly better.} g6 {[%emt 0:01:08]} 9. c4 {[%emt 0:03:44]} e5 {[%emt 0:01:20] Strongly threatening ...e4.} 10. Bc2 {[%emt 0:01:27]} Bg7 {[%emt 0:00:58]} 11. Nc3 {[%emt 0:00:09]} O-O {[%emt 0:00:28] [#]} 12. d5 $146 {[%emt 0:11:09]} ({Predecessor:} 12. Re1 Ne8 13. e4 Qf6 14. Nd5 Qd8 15. g4 c6 16. Nc3 exd4 17. Nxd4 Ne5 18. Qe2 {1-0 (44) Zhou,J (1692)-Gao,L (1509) Toronto 2018}) 12... c6 {[%emt 0:03:50]} 13. dxc6 {[%emt 0:05:14]} Bxc6 {[%emt 0:00:11]} 14. Nd2 {[%emt 0:00:17]} d5 {[%emt 0:03:14]} 15. cxd5 {[%emt 0:00:17]} Nxd5 {[%emt 0:00:09]} 16. Nxd5 {[%emt 0:01:34]} Bxd5 {[%emt 0:00:03]} 17. Be4 {[%emt 0:00:03]} Qe6 {[%emt 0:05:12]} 18. Bxd5 {[%emt 0:14:55]} Qxd5 {[%emt 0:01:19]} 19. e4 {[%emt 0:00:05]} Qe6 {[%emt 0:00:20]} 20. Nb1 {[%emt 0:01:02]} Nc5 {[%emt 0:02:50]} 21. Nc3 {[%emt 0:00:13]} Rad8 {[%emt 0:00:15]} 22. Qe2 {[%emt 0:01:27]} Rd4 {[%emt 0:00:08]} 23. f3 {[%emt 0:03:31]} f5 {[%emt 0:02:12]} 24. Kh1 {[%emt 0:02:31]} Qc4 {[%emt 0:01:24]} 25. Rfe1 {[%emt 0:09:37]} Nd3 {[%emt 0:02:07]} 26. Red1 {[%emt 0:01:36] [#] Loses the game.} (26. Rf1 $1 $11 {and White has nothing to worry.}) 26... fxe4 $1 $19 {[%emt 0:00:02]} 27. Nxe4 {[%emt 0:01:05] [#]} (27. Bg1 {is tougher.} exf3 28. gxf3) 27... Rxe4 $1 {[%emt 0:00:02][%mdl 512]} 28. Qxd3 {[%emt 0:02:37] [#]} (28. Qf1 Rd4) 28... Re1+ {[%emt 0:00:02][%mdl 512]} 29. Rxe1 {[%emt 0:00:12]} Qxd3 {[%emt 0:00:02]} 30. Rad1 {[%emt 0:00:02]} Qc2 {[%emt 0:01:16]} 31. Rd7 {[%emt 0:00:13]} Qa4 {[%emt 0:00:40]} 32. Rc7 {[%emt 0:00:39]} Qxa2 {[%emt 0:00:12]} 33. Rd1 {[%emt 0:00:11]} Qxb2 {[%emt 0:01:21]} 34. Rdd7 {[%emt 0:00:17] [#]} e4 $1 {[%emt 0:00:16]} 35. fxe4 {[%emt 0:01:41]} (35. Rxg7+ Qxg7) 35... Rf1+ {[%emt 0:00:09] Black mates.} 36. Bg1 {[%emt 0:00:01] [#]} Qa1 $1 {[%emt 0:00:13]} 37. Rxg7+ {[%emt 0:00:44]} Qxg7 {[%emt 0:00:03]} 38. Rxg7+ {[%emt 0:00:03]} Kxg7 {[%emt 0:00:01]} 39. Kh2 {[%emt 0:00:01] [#]} Rxg1 $1 {[%emt 0:00:03]} 40. Kxg1 {[%emt 0:00:08] KP-KP} Kf6 {[%emt 0:00:15]} 41. Kf2 {[%emt 0:00:01]} Ke5 {[%emt 0:00:01]} 42. Ke3 {[%emt 0:00:06]} b5 {[%emt 0:00:05] Weighted Error Value: White=0.56/Black=0.04 (flawless)} 0-1

[Event "New York Spring IM-C 2022"]
[Site "New York"]
[Date "2022.04.15"]
[Round "2.5"]
[White "Berczes, David"]
[Black "Rozman, Levy"]
[Result "1-0"]
[ECO "D02"]
[WhiteElo "2452"]
[BlackElo "2334"]
[Annotator "TA"]
[PlyCount "93"]
[EventDate "2022.04.14"]
[EventType "tourn"]
[EventCountry "USA"]
[SourceTitle "playchess.com"]
[Source "ChessBase"]
[SourceQuality "1"]
[TimeControl "5400+30"]

{[%evp 11,93,18,19,26,24,14,28,0,32,10,41,32,28,32,44,48,45,11,20,18,29,0,0,0,0,0,0,0,0,0,35,0,63,61,64,58,508,510,447,514,488,459,488,477,492,496,476,487,482,465,1069,550,517,395,395,348,375,263,321,322,301,299,393,392,440,430,439,422,481,481,550,463,421,410,415,412,549,562,29970,29971,2931,639,2161,571]} 1. Nf3 {[%emt 0:07:43]} d5 {[%emt 0:00:39]} 2. g3 {[%emt 0:01:38]} Nc6 {[%emt 0:01:33]} 3. d4 {[%emt 0:00:24]} Bf5 {[%emt 0:00:15]} 4. Bg2 {[%emt 0:01:35]} Nb4 {[%emt 0:01:07]} 5. Na3 {[%emt 0:00:22]} e6 {[%emt 0:00:17]} 6. O-O {[%emt 0:04:39]} Be7 {[%emt 0:01:47]} 7. c3 {[%emt 0:19:35] D02: 1 d4 d5 2 Nf3 sidelines, including 2...Nf6 3 g3 and 2...Nf6 3 Bf4.} Nc6 {[%emt 0:00:44]} 8. Nc2 {[%emt 0:01:45]} h5 {[%emt 0:07:03] [#]} 9. Ne5 $146 {[%emt 0:29:05] White has an edge.} ({Predecessor:} 9. h4 Nf6 10. Ng5 Qd7 11. Ne3 Bg6 12. c4 O-O-O 13. cxd5 Nxd5 14. Nxd5 exd5 15. Qa4 f6 {½-½ (15) Petrov,N (2566)-Bifulco,M (2252) Bratto 2017}) 9... h4 {[%emt 0:08:59]} 10. Ne3 {[%emt 0:08:29]} hxg3 {[%emt 0:18:16]} (10... Nxe5 {keeps more tension.} 11. Nxf5 exf5 12. dxe5 c6) 11. hxg3 {[%emt 0:10:17]} Nxe5 {[%emt 0:16:54]} 12. Nxf5 {[%emt 0:02:10]} exf5 {[%emt 0:05:11]} 13. dxe5 {[%emt 0:00:05] Black must now prevent Qb3.} c6 {[%emt 0:00:07]} 14. c4 {[%emt 0:01:13]} dxc4 {[%emt 0:02:05]} 15. Qc2 {[%emt 0:01:03]} Qd7 {[%emt 0:00:25]} 16. e4 {[%emt 0:03:47]} fxe4 {[%emt 0:05:31]} 17. Qxc4 {[%emt 0:00:54]} f5 {[%emt 0:01:14]} 18. Be3 {[%emt 0:02:18] [#] And now Rad1 would win.} Qd5 {[%emt 0:07:35]} 19. Qxd5 {[%emt 0:00:25]} cxd5 {[%emt 0:00:06]} 20. Rfd1 {[%emt 0:00:06]} Rd8 {[%emt 0:02:06]} 21. Bf1 {[%emt 0:01:27][%mdl 1024] White has compensation.} a6 {[%emt 0:03:07]} (21... Nh6 $11) 22. Rac1 $1 $36 {[%emt 0:00:54][%mdl 2048] White has good play.} Nh6 {[%emt 0:00:35]} 23. Bb6 {[%emt 0:00:28] &Bianco is more active.} Rd7 {[%emt 0:06:59][%mdl 8192] Loses the game.} (23... Rb8 $14) 24. e6 $18 {[%emt 0:00:46]} Rd6 {[%emt 0:00:05]} 25. Rc8+ {[%emt 0:00:04][%mdl 64] [#] Skewer} Bd8 {[%emt 0:00:04]} 26. Bc7 {[%emt 0:00:36]} Ke7 {[%emt 0:00:52][%cal Od8c7]} 27. Bxd6+ {[%emt 0:00:04]} Kxd6 {[%emt 0:00:05]} 28. Bc4 {[%emt 0:00:42]} Kxe6 {[%emt 0:00:32]} 29. Rxd5 {[%emt 0:00:55]} Ke7 {[%emt 0:00:14]} 30. Rb8 {[%emt 0:01:16]} b5 {[%emt 0:00:27]} (30... g6 $142 31. Rxb7+ Kf6 32. Bxa6 Re8) 31. Bb3 {[%emt 0:00:23] White wants to mate with Rb7+.} g6 {[%emt 0:00:33]} 32. Rb7+ {[%emt 0:00:31]} Kf6 {[%emt 0:00:11]} 33. Rd6+ {[%emt 0:00:16]} Kg5 {[%emt 0:00:31]} 34. Rb8 {[%emt 0:01:03]} Bf6 {[%emt 0:03:48]} 35. Rbb6 {[%emt 0:00:09]} Rf8 {[%emt 0:00:16]} 36. Bd1 {[%emt 0:00:30]} Ng8 {[%emt 0:01:35]} 37. Rxa6 {[%emt 0:00:05]} Ne7 {[%emt 0:00:31]} 38. b4 {[%emt 0:00:53]} Bc3 {[%emt 0:01:34]} 39. a3 {[%emt 0:00:24]} f4 {[%emt 0:00:27]} 40. Re6 {[%emt 0:00:54][%csl LRe4,LRe7]} Rd8 {[%emt 0:01:54]} 41. gxf4+ {[%emt 0:00:17]} Kxf4 {[%emt 0:00:10]} 42. Rxe7 {[%emt 0:00:39]} Rxd1+ {[%emt 0:00:06] KRR-KRB} 43. Kg2 {[%emt 0:00:02]} g5 {[%emt 0:00:38]} 44. Rae6 {[%emt 0:00:21]} Ra1 {[%emt 0:01:08]} 45. Rf7+ {[%emt 0:01:03]} Kg4 {[%emt 0:00:05]} 46. Rxe4+ {[%emt 0:00:02]} Kh5 {[%emt 0:00:06]} 47. Re3 {[%emt 0:01:09] Weighted Error Value: White=0.24 (precise) /Black=0.70} (47. Re6 $142 Bd2 48. f3) 1-0

[Event "New York Spring IM-C 2022"]
[Site "New York"]
[Date "2022.04.16"]
[Round "3.1"]
[White "Rozman, Levy"]
[Black "Lee, Justin"]
[Result "1-0"]
[ECO "A20"]
[WhiteElo "2334"]
[BlackElo "2104"]
[Annotator "TA"]
[PlyCount "113"]
[EventDate "2022.04.14"]
[EventType "tourn"]
[EventCountry "USA"]
[SourceTitle "playchess.com"]
[Source "ChessBase"]
[SourceQuality "1"]
[TimeControl "5400+30"]

{[%evp 9,113,8,11,20,21,0,50,54,41,44,56,16,33,0,0,-33,-33,-49,46,49,41,44,49,45,52,55,53,51,56,62,63,56,50,-87,-66,-175,-186,-179,-179,-179,-183,-204,-210,-204,-186,-195,-172,-189,-165,-193,-206,-176,0,0,0,0,46,0,216,210,427,437,492,566,560,532,483,443,664,604,1885,904,936,929,929,920,916,928,933,645,2616,2143,5371,5226,5189,927,940,929,29977,10697,29972,5204,5168,5120,29980,29981,29981,29982,29982,29983,29983,29984,29985,29986,29990,29991]} 1. c4 {[%emt 0:01:45]} e5 {[%emt 0:00:06][%cal Be7e5,Be5e4][%mdl 32]} 2. g3 {[%emt 0:00:51]} c6 {[%emt 0:00:09]} 3. d4 {[%emt 0:00:36]} e4 {[%emt 0:00:30]} 4. a3 {[%emt 0:01:25]} d5 {[%emt 0:04:24]} 5. Nc3 {[%emt 0:00:43]} h6 {[%emt 0:03:36]} 6. Bg2 {[%emt 0:00:23] A20: English Opening: 1...e5.} Nf6 {[%emt 0:00:34]} 7. f3 {[%emt 0:00:30] [#]} Bf5 $146 {[%emt 0:05:24]} (7... exf3 $1 $11 8. Nxf3 dxc4) ({Predecessor:} 7... exf3 8. Nxf3 Be7 9. O-O O-O 10. Nh4 dxc4 11. e4 Bg4 12. Bf3 Bh3 13. Bg2 Bg4 {0-1 (59) Niemann,H (2642)-Esipenko,A (2714) chess24.com INT 2022}) 8. fxe4 {[%emt 0:02:49] White is slightly better.} dxe4 {[%emt 0:03:51]} 9. Nh3 {[%emt 0:01:51][%cal Bg1h3,Bh3f2,Bf2e4,Be4c3][%mdl 32]} g6 {[%emt 0:09:22]} 10. Bf4 {[%emt 0:08:20]} Bg7 {[%emt 0:03:18]} 11. Qd2 {[%emt 0:04:23]} Qe7 {[%emt 0:08:14]} 12. c5 {[%emt 0:11:35]} Qe6 $1 {[%emt 0:02:55]} 13. Nf2 {[%emt 0:00:51][%cal Og3g4]} Nbd7 {[%emt 0:02:04]} ({Better is} 13... g5 $1 $15 14. Be3 Na6) 14. g4 $1 $36 {[%emt 0:04:11][%mdl 2048] White has some pressure.} Bxg4 {[%emt 0:08:25]} 15. Ncxe4 {[%emt 0:00:50]} Nxe4 {[%emt 0:00:34]} 16. Nxe4 {[%emt 0:00:19]} O-O $1 {[%emt 0:02:53]} 17. Bxh6 {[%emt 0:04:05]} Bxh6 {[%emt 0:16:08]} 18. Qxh6 {[%emt 0:00:54]} Nf6 $1 {[%emt 0:00:15]} 19. Nc3 {[%emt 0:11:01]} Rad8 {[%emt 0:15:53]} 20. O-O-O {[%emt 0:02:37]} Rfe8 {[%emt 0:00:52][%cal Bf8e8,Be8e6,Be6e1,Be1f1,Bf1f2][%mdl 32]} 21. Rhf1 {[%emt 0:07:21]} (21. Rd2 $14) 21... Bxe2 $17 {[%emt 0:04:21]} 22. Rde1 {[%emt 0:01:58]} (22. Nxe2 $15 Qxe2 23. Qf4 Qxg2 24. Qxf6) 22... Bxf1 $19 {[%emt 0:00:18]} ({Don't take} 22... Ng4 23. Qd2 Ne3 24. Rf2 $18 (24. Qxe2 Nxf1 25. Qxe6 Rxe6 $11)) 23. Rxe6 {[%emt 0:04:20]} Rxe6 {[%emt 0:00:05]} 24. Bxf1 {[%emt 0:00:53] Black must now prevent Bc4.} Re1+ {[%emt 0:00:05]} 25. Kc2 {[%emt 0:00:05]} Rxf1 {[%emt 0:00:04]} 26. Qe3 {[%emt 0:00:18]} Re8 {[%emt 0:00:41]} 27. Qg3 {[%emt 0:00:13]} Re7 {[%emt 0:01:56] Prevents Qc7.} 28. Qb8+ {[%emt 0:01:00]} Kg7 {[%emt 0:00:07]} 29. Qxa7 {[%emt 0:00:06][%cal Od4d5]} Rf2+ {[%emt 0:00:11]} 30. Kb3 {[%emt 0:00:10][%cal Od4d5] [#]} Rxh2 $2 {[%emt 0:00:14]} (30... Rd2 $1 $19 31. Qa4 Rd7) 31. d5 $1 $11 {[%emt 0:00:29] And now dxc6 would win.} Rd7 {[%emt 0:02:32]} (31... cxd5 $2 32. c6 d4 {[#]} 33. cxb7 $1 dxc3 34. bxc3 $18) ({Resist} 31... Nxd5 32. Nxd5 Ree2 33. Nb4 $16) 32. d6 {[%emt 0:02:18]} g5 {[%emt 0:02:10]} (32... Rh5 $11) 33. Ka2 $1 $14 {[%emt 0:00:07][%mdl 1024] White has compensation.} g4 $2 {[%emt 0:00:16] White stays focused until the end.} (33... Rh4 $1 $11 {and Black is okay.}) 34. Qa4 $18 {[%emt 0:00:06]} Rd8 $2 {[%emt 0:02:31]} (34... Rh6) 35. Qf4 Rh5 {[%emt 0:00:30] Inhibits Qg5+.} 36. Ne4 Nxe4 {[%emt 0:00:30]} 37. Qxg4+ Rg5 {[%emt 0:00:30]} 38. Qxe4 {[%mdl 4096] Endgame Strongly threatening Qe7. KQ-KRR} Kh6 {[%emt 0:00:30]} (38... Rf8 $142 39. Qe7 Rxc5 40. Qxb7 Rb5 41. Qxc6 Rbb8) 39. Qe7 {[%csl LRb7,LRd8,LRf7]} Rgg8 {[%emt 0:00:30]} 40. Qf6+ (40. Qxb7 $142 Kg7 41. Qxc6) 40... Kh7 {[%emt 0:00:30]} 41. Qxf7+ Rg7 {[%emt 0:00:30]} 42. Qh5+ Kg8 {[%emt 0:00:30]} 43. Qf5 Rdd7 {[%emt 0:00:30]} 44. Qe6+ Kf8 {[%emt 0:00:30]} 45. a4 {aiming for a5.} Rh7 {[%emt 0:00:30]} 46. a5 Rhf7 {[%emt 0:00:30]} 47. Qe4 (47. a6 $142 bxa6 48. Qe4) 47... Rd8 {[%emt 0:00:30]} 48. Qh4 {[%cal Rh4h8]} Ke8 {[%emt 0:00:30]} 49. Qh3 (49. Qh5 $142 Ra8 50. b4 Rd8 51. Kb3 Rdd7 52. Qe5+ Rde7 53. dxe7 Rxe7 54. Qf4) 49... Rdd7 {[%emt 0:00:30]} 50. a6 (50. Qh5 $142 Rd8 51. b4 Rdd7 52. Qe5+ Rde7 53. dxe7 Rxe7 54. Qf4 Re2+ 55. Kb3) 50... bxa6 {[%emt 0:00:30]} 51. Qg2 Rb7 {[%emt 0:00:30]} 52. Qxc6+ {White mates.} Kf8 {[%emt 0:00:30]} 53. Qc8+ Kg7 {[%emt 0:00:30]} 54. Qg4+ Kh6 {[%emt 0:00:30]} 55. c6 {[%cal Bc5c6,Bc6c7][%mdl 32]} Rb5 {[%emt 0:00:30]} 56. Qh3+ Kg7 {[%emt 0:00:30]} 57. c7 {Weighted Error Value: White=0.22 (precise) /Black=0.72} 1-0

[Event "New York Spring IM-C 2022"]
[Site "New York"]
[Date "2022.04.16"]
[Round "3.2"]
[White "Chasin, Nico"]
[Black "Berczes, David"]
[Result "0-1"]
[ECO "E11"]
[WhiteElo "2270"]
[BlackElo "2452"]
[Annotator "TA"]
[PlyCount "160"]
[EventDate "2022.04.14"]
[EventType "tourn"]
[EventCountry "USA"]
[SourceTitle "playchess.com"]
[Source "ChessBase"]
[SourceQuality "1"]
[TimeControl "5400+30"]

{[%evp 10,160,30,27,25,8,46,29,21,-12,0,-4,0,-19,6,-9,-17,-38,0,0,38,31,63,63,52,59,46,50,100,87,97,94,96,98,94,0,100,103,93,90,92,95,107,65,75,67,86,91,108,102,137,135,143,133,81,141,220,94,215,-94,139,0,0,0,436,421,414,0,0,0,0,0,0,-75,-67,-61,-64,-77,-47,-54,-46,-132,-129,-141,-78,-55,-82,-114,-24,-25,-12,-16,0,0,0,-154,-148,-135,0,0,0,0,0,0,0,-25,0,0,0,0,0,0,0,0,0,0,0,0,0,0,0,0,0,-12838,-12839,-27999,-27999,-27999,-28000,-28000,-28000,-28000,-28000,-28000,-28000,-28000,-28000,-27999,-27999,-27999,-27999,-27999,-27999,-27999,-27999,-27999,-27999,-27999,-27999,-27999,-27999,-27999,-27999]} 1. d4 {[%emt 0:00:02]} e6 {[%emt 0:10:41]} 2. Nf3 {[%emt 0:00:30]} Nf6 {[%emt 0:00:33]} 3. c4 {[%emt 0:00:18]} Bb4+ {[%emt 0:00:34]} 4. Nbd2 {[%emt 0:00:12]} O-O {[%emt 0:00:31]} 5. a3 {[%emt 0:00:09]} Be7 {[%emt 0:00:07]} 6. e4 {[%emt 0:00:50]} d6 {[%emt 0:00:16][%cal Oe6e5] E11: Bogo-Indian.} 7. Bd3 {[%emt 0:00:36]} Nfd7 {[%emt 0:01:07]} (7... e5 $5) 8. b4 {[%emt 0:01:25]} e5 {[%emt 0:00:26] White has an edge.} 9. Bb2 {[%emt 0:00:25]} exd4 {[%emt 0:00:48]} 10. Nxd4 {[%emt 0:00:17]} Bf6 {[%emt 0:02:05] [#]} 11. Qb3 $146 {[%emt 0:06:23]} ({Predecessor:} 11. Qc2 Nc6 12. Nxc6 bxc6 13. O-O Bxb2 14. Qxb2 a5 15. Nb3 axb4 16. axb4 Rxa1 17. Qxa1 {½-½ (42) Georgiev,K (2564)-Tratar,M (2417) Terme Catez 2022}) 11... Nc6 {[%emt 0:17:44]} 12. Nc2 {[%emt 0:02:10]} Bxb2 {[%emt 0:07:41]} 13. Qxb2 {[%emt 0:00:17]} Nde5 {[%emt 0:00:11]} (13... f5 $5) 14. Be2 {[%emt 0:00:34]} f5 {[%emt 0:04:49]} 15. f4 {[%emt 0:06:19] Inhibits Qg5.} Ng6 {[%emt 0:08:39]} 16. O-O {[%emt 0:00:12]} fxe4 {[%emt 0:01:00]} 17. g3 {[%emt 0:00:24]} Bh3 {[%emt 0:10:13]} 18. Rf2 {[%emt 0:00:26]} Qd7 {[%emt 0:03:00]} (18... Re8 $14 19. Ne3 a6) 19. Nxe4 $16 {[%emt 0:03:20]} Rae8 {[%emt 0:01:54] ...Nxf4 is the strong threat.} 20. Bf3 {[%emt 0:00:25]} Bg4 {[%emt 0:15:21]} 21. Bg2 {[%emt 0:01:13]} Bh3 {[%emt 0:01:41]} 22. Bf3 {[%emt 0:02:19]} Bg4 $1 {[%emt 0:01:55]} 23. Bh1 {[%emt 0:00:01]} Bf5 {[%emt 0:01:23]} 24. Re1 {[%emt 0:00:36]} Kh8 {[%emt 0:04:50]} 25. Qc3 {[%emt 0:01:22]} h6 {[%emt 0:01:14]} 26. Re3 {[%emt 0:04:12]} a6 {[%emt 0:01:41]} 27. a4 {[%emt 0:01:48]} Nce7 {[%emt 0:01:06]} 28. a5 {[%emt 0:00:28]} Bg4 {[%emt 0:01:36]} 29. Re1 {[%emt 0:01:53]} Nf5 {[%emt 0:00:54]} 30. Rd2 {[%emt 0:00:01]} Nfh4 {[%emt 0:00:59]} 31. Nf2 {[%emt 0:02:03]} (31. gxh4 Nxf4 32. h3 Bxh3 $14) 31... Rxe1+ {[%emt 0:00:26]} 32. Nxe1 {[%emt 0:00:01]} Qe6 {[%emt 0:00:28]} (32... Qe7 $16 {was called for.} 33. Rd4 (33. Nc2 Bc8 $16) 33... Bh5) 33. Nc2 {[%emt 0:00:26]} (33. Rd4 $1 $18 {is more deadly.}) 33... Re8 {[%emt 0:00:36]} 34. Be4 $2 {[%emt 0:02:00] [#]} (34. gxh4 Nxf4 35. Nxg4 Qxg4+ 36. Kf1 Nh3 $11) (34. Nxg4 $18 Qxg4 35. Rf2 (35. Bxb7 Nxf4 36. Ne3 Qg6 $19)) 34... Bf3 $2 {[%emt 0:00:17] [#]} 35. Nd4 {[%emt 0:00:16]} Qf6 $40 {[%emt 0:00:07][%mdl 128] Black has some attack.} 36. Qe3 {[%emt 0:02:04]} Nxf4 $2 {[%emt 0:01:02][%mdl 8192]} 37. Nxf3 $18 {[%emt 0:00:42]} Nh3+ {[%emt 0:00:31]} 38. Nxh3 $2 {[%emt 0:00:19]} (38. Kf1 $18 Qa1+ 39. Ne1) 38... Rxe4 $11 {[%emt 0:00:15][%mdl 64] Remove Defender} 39. Qxe4 {[%emt 0:00:43]} Nxf3+ {[%emt 0:00:02]} 40. Kg2 {[%emt 0:00:37]} Nxd2 {[%emt 0:00:01][%csl Gd2][%cal Rf6f1,Bf3d2,Bd2e4,Be4f6][%mdl 32]} 41. Qe8+ {[%emt 0:01:41]} (41. Qe2 $1 $11 {keeps the balance.} Nb3 42. Nf4) 41... Kh7 $17 {[%emt 0:00:04][%csl Gd2][%cal Rf6f1]} 42. Nf4 {[%emt 0:00:23]} Qf5 {[%emt 0:01:03]} 43. Qe2 {[%emt 0:02:56]} Ne4 {[%emt 0:00:54]} 44. Qd3 {[%emt 0:01:04]} c6 {[%emt 0:01:09] Against b5. Hoping for ...g5.} 45. Qe3 {[%emt 0:02:54]} (45. Kf3 $1 $15 Ng5+ 46. Ke3 Qxd3+ 47. Kxd3) 45... g5 {[%emt 0:00:33]} 46. Ne2 {[%emt 0:00:01]} c5 {[%emt 0:00:30]} (46... h5 $142 47. Nd4 Qe5) 47. bxc5 {[%emt 0:00:17]} dxc5 {[%emt 0:00:16]} 48. Nc1 {[%emt 0:02:25]} Nf6 {[%emt 0:00:14] &Nero is more active.} (48... g4 $17 49. Nd3 Kg8) 49. Nd3 $11 {[%emt 0:02:13]} Qe4+ {[%emt 0:00:06]} 50. Qf3 $1 {[%emt 0:00:27]} g4 {[%emt 0:00:09]} 51. Qxe4+ {[%emt 0:00:04]} Nxe4 {[%emt 0:00:01][%mdl 4096] Endgame KN-KN} 52. Ne5 {[%emt 0:04:09]} ({White must play} 52. h3 $1 $11) 52... h5 $17 {[%emt 0:00:44][%cal Bh6h5,Bh5g4][%mdl 32]} 53. h3 {[%emt 0:01:03]} Nd2 {[%emt 0:00:52]} (53... gxh3+ $17 54. Kxh3 Kg7) 54. hxg4 $11 hxg4 {[%emt 0:00:30]} 55. Kf2 Nb3 {[%emt 0:00:30]} 56. Ke3 Nxa5 {[%emt 0:00:30]} 57. Kd3 b5 {[%emt 0:00:30]} 58. cxb5 axb5 {[%emt 0:00:30]} 59. Nxg4 Kg6 {[%emt 0:00:30]} 60. Ne5+ Kf5 {[%emt 0:00:30]} 61. Nd7 c4+ {[%emt 0:00:30]} 62. Kc3 Ke6 {[%emt 0:00:30]} 63. Nb6 Kd6 {[%emt 0:00:30] Threatens to win with ...Kc6.} 64. Kb4 {[%csl LRa5,LRb5]} Kc6 {[%emt 0:00:30]} 65. Nc8 Kd5 {[%emt 0:00:30] Strongly threatening ...Nc6+.} 66. g4 $2 {[%mdl 8192]} ({Wrong is} 66. Kxa5 $2 c3 67. Ne7+ Ke4 68. Kxb5 c2 $19) (66. Ne7+ $11 Ke4 67. g4) 66... Nc6+ $19 {[%emt 0:00:30]} 67. Kxb5 c3 {[%emt 0:00:30] Black mates.} 68. Nb6+ Ke4 {[%emt 0:00:30]} 69. Na4 c2 {[%emt 0:00:30]} 70. Nc3+ Kd3 {[%emt 0:00:30]} 71. Na2 Nd4+ {[%emt 0:00:30]} 72. Kb4 Nf3 {[%emt 0:00:30]} 73. Kb3 Kd2 {[%emt 0:00:30]} 74. Kb2 Ng5 {[%emt 0:00:30]} 75. Nc1 Ne4 {[%emt 0:00:30]} 76. Nb3+ Kd1 {[%emt 0:00:30]} 77. Nc1 Kd2 {[%emt 0:00:30]} 78. Nb3+ Kd1 {[%emt 0:00:30]} 79. Nc1 Nc3 {[%emt 0:00:30]} 80. Nd3 Kd2 {[%emt 0:00:30] Both players deserved the win here.  Weighted Error Value: White=0.36/Black=0.38} 0-1